[Event "Titled Tuesday Blitz July 4 Early 2023"]
[White "tomobeast"]
[Black "KorolDimitriy75"]
[WhiteElo "2254"]
[BlackElo "2411"]
[Result "0-1"]
[Round "10"]
[TimeControl "180+2"]
[Date "2023.07.04"]
[WhiteClock "0:00:05"]
[BlackClock "0:00:59"]
[Board "136"]

1. e4 {[%clk 0:03:00]}  c5 {[%clk 0:03:00]} 2. Nf3 {[%clk 0:03:00]}  d6 {[%clk 0:03:00]} 3. d4 {[%clk 0:03:00]}  cxd4 {[%clk 0:03:01]} 4. Nxd4 {[%clk 0:03:01]}  Nf6 {[%clk 0:03:01]} 5. Nc3 {[%clk 0:03:02]}  g6 {[%clk 0:03:02]} 6. Be3 {[%clk 0:03:01]}  Bg7 {[%clk 0:03:03]} 7. f3 {[%clk 0:03:00]}  O-O {[%clk 0:03:03]} 8. Qd2 {[%clk 0:03:01]}  Nc6 {[%clk 0:03:04]} 9. O-O-O {[%clk 0:03:01]}  d5 {[%clk 0:03:04]} 10. Kb1 {[%clk 0:03:01]}  Nxd4 {[%clk 0:03:03]} 11. e5 {[%clk 0:03:01]}  Nxf3 {[%clk 0:03:02]} 12. gxf3 {[%clk 0:03:00]}  Nh5 {[%clk 0:03:02]} 13. Nxd5 {[%clk 0:02:57]}  Be6 {[%clk 0:03:02]} 14. f4 {[%clk 0:02:49]}  Qxd5 {[%clk 0:03:00]} 15. Qxd5 {[%clk 0:02:49]}  Bxd5 {[%clk 0:03:01]} 16. Rxd5 {[%clk 0:02:49]}  Bh6 {[%clk 0:03:01]} 17. Bc4 {[%clk 0:01:05]}  Bxf4 {[%clk 0:02:49]} 18. Bxf4 {[%clk 0:01:01]}  Nxf4 {[%clk 0:02:50]} 19. Rd7 {[%clk 0:01:01]}  e6 {[%clk 0:02:48]} 20. Rxb7 {[%clk 0:01:00]}  Rfb8 {[%clk 0:02:30]} 21. Rd7 {[%clk 0:00:44]}  Rd8 {[%clk 0:02:18]} 22. Rhd1 {[%clk 0:00:44]}  Rxd7 {[%clk 0:02:15]} 23. Rxd7 {[%clk 0:00:45]}  g5 {[%clk 0:02:15]} 24. b4 {[%clk 0:00:38]}  Ng6 {[%clk 0:02:12]} 25. b5 {[%clk 0:00:31]}  Nxe5 {[%clk 0:02:10]} 26. Rc7 {[%clk 0:00:32]}  Nxc4 {[%clk 0:01:38]} 27. Rxc4 {[%clk 0:00:33]}  Kg7 {[%clk 0:01:37]} 28. a4 {[%clk 0:00:25]}  h5 {[%clk 0:01:32]} 29. Rc7 {[%clk 0:00:22]}  g4 {[%clk 0:01:28]} 30. Kc1 {[%clk 0:00:21]}  Kg6 {[%clk 0:01:21]} 31. Kd2 {[%clk 0:00:21]}  f5 {[%clk 0:01:18]} 32. a5 {[%clk 0:00:19]}  e5 {[%clk 0:01:16]} 33. c4 {[%clk 0:00:19]}  h4 {[%clk 0:01:15]} 34. Ke2 {[%clk 0:00:17]}  f4 {[%clk 0:01:14]} 35. b6 {[%clk 0:00:16]}  axb6 {[%clk 0:01:13]} 36. axb6 {[%clk 0:00:17]}  Ra2+ {[%clk 0:01:12]} 37. Kf1 {[%clk 0:00:14]}  g3 {[%clk 0:01:08]} 38. hxg3 {[%clk 0:00:14]}  hxg3 {[%clk 0:01:09]} 39. b7 {[%clk 0:00:13]}  Rb2 {[%clk 0:01:08]} 40. c5 {[%clk 0:00:12]}  f3 {[%clk 0:01:07]} 41. Rc6+ {[%clk 0:00:10]}  Kf5 {[%clk 0:01:05]} 42. Rb6 {[%clk 0:00:11]}  Rc2 {[%clk 0:01:00]} 43. Ke1 {[%clk 0:00:11]}  g2 {[%clk 0:00:59]} 44. b8=Q {[%clk 0:00:05]}  g1=Q# {[%clk 0:00:59]} 0-1


[Site "https://www.chess.com"]

[Event "Titled Tuesday Blitz July 4 Early 2023"]
[White "Wartiovaara, Oliver"]
[Black "Thiel, Thomas"]
[WhiteFideId "513024"]
[BlackFideId "4615964"]
[WhiteElo "2378"]
[BlackElo "2218"]
[Result "1-0"]
[Round "10"]
[TimeControl "180+2"]
[Date "2023.07.04"]
[WhiteClock "0:01:05"]
[BlackClock "0:00:45"]
[Board "137"]

1. e4 {[%clk 0:02:41]}  d5 {[%clk 0:02:59]} 2. exd5 {[%clk 0:02:42]}  Nf6 {[%clk 0:02:58]} 3. d4 {[%clk 0:02:41]}  Nxd5 {[%clk 0:02:58]} 4. Nf3 {[%clk 0:02:41]}  g6 {[%clk 0:02:56]} 5. c4 {[%clk 0:02:39]}  Nb6 {[%clk 0:02:54]} 6. c5 {[%clk 0:02:40]}  Nd5 {[%clk 0:02:53]} 7. Nc3 {[%clk 0:02:40]}  Bg7 {[%clk 0:02:53]} 8. Bc4 {[%clk 0:02:40]}  Nxc3 {[%clk 0:02:51]} 9. bxc3 {[%clk 0:02:41]}  O-O {[%clk 0:02:50]} 10. O-O {[%clk 0:02:40]}  Nc6 {[%clk 0:02:50]} 11. Bg5 {[%clk 0:02:33]}  Na5 {[%clk 0:02:48]} 12. Bd3 {[%clk 0:02:23]}  b6 {[%clk 0:02:48]} 13. Re1 {[%clk 0:02:19]}  Re8 {[%clk 0:02:47]} 14. Qa4 {[%clk 0:01:55]}  Bd7 {[%clk 0:02:45]} 15. Qa3 {[%clk 0:01:55]}  Nb7 {[%clk 0:02:30]} 16. Be4 {[%clk 0:01:50]}  c6 {[%clk 0:02:28]} 17. cxb6 {[%clk 0:01:46]}  axb6 {[%clk 0:02:27]} 18. Qb3 {[%clk 0:01:43]}  Nd6 {[%clk 0:02:17]} 19. Ne5 {[%clk 0:01:31]}  Nxe4 {[%clk 0:02:00]} 20. Nxf7 {[%clk 0:01:16]}  Be6 {[%clk 0:01:22]} 21. Qxe6 {[%clk 0:01:13]}  Qd5 {[%clk 0:01:22]} 22. Nh6+ {[%clk 0:01:09]}  Kh8 {[%clk 0:00:45]} 23. Rxe4 {[%clk 0:01:05]} 1-0


[Site "https://www.chess.com"]

[Event "Titled Tuesday Blitz July 4 Early 2023"]
[White "Fernandez Siles, Luis"]
[Black "Sariego Figueredo, Wilfredo"]
[WhiteFideId "2209420"]
[BlackFideId "3500080"]
[WhiteElo "2371"]
[BlackElo "2196"]
[Result "1-0"]
[Round "10"]
[TimeControl "180+2"]
[Date "2023.07.04"]
[WhiteClock "0:00:28"]
[BlackClock "0:00:00"]
[Board "138"]

1. d4 {[%clk 0:03:00]}  d5 {[%clk 0:02:54]} 2. c4 {[%clk 0:03:00]}  c6 {[%clk 0:02:54]} 3. Nc3 {[%clk 0:02:59]}  Nf6 {[%clk 0:02:54]} 4. Nf3 {[%clk 0:02:59]}  a6 {[%clk 0:02:54]} 5. g3 {[%clk 0:02:56]}  dxc4 {[%clk 0:02:53]} 6. Bg2 {[%clk 0:02:56]}  b5 {[%clk 0:02:48]} 7. O-O {[%clk 0:02:56]}  Bb7 {[%clk 0:02:48]} 8. Qc2 {[%clk 0:02:41]}  e6 {[%clk 0:02:47]} 9. e4 {[%clk 0:02:40]}  Be7 {[%clk 0:02:46]} 10. b3 {[%clk 0:02:35]}  b4 {[%clk 0:02:37]} 11. Na4 {[%clk 0:02:34]}  c3 {[%clk 0:02:36]} 12. Nc5 {[%clk 0:02:22]}  Bxc5 {[%clk 0:02:35]} 13. dxc5 {[%clk 0:02:22]}  Qe7 {[%clk 0:02:35]} 14. Be3 {[%clk 0:02:20]}  Nbd7 {[%clk 0:02:35]} 15. a3 {[%clk 0:02:05]}  a5 {[%clk 0:02:28]} 16. axb4 {[%clk 0:02:05]}  axb4 {[%clk 0:02:29]} 17. Rxa8+ {[%clk 0:02:06]}  Bxa8 {[%clk 0:02:30]} 18. Ra1 {[%clk 0:02:06]}  O-O {[%clk 0:02:30]} 19. Ra7 {[%clk 0:02:06]}  Qd8 {[%clk 0:02:21]} 20. Ne1 {[%clk 0:01:49]}  Qb8 {[%clk 0:02:19]} 21. Ra4 {[%clk 0:01:48]}  Qb5 {[%clk 0:02:15]} 22. Nd3 {[%clk 0:01:48]}  Bb7 {[%clk 0:02:09]} 23. Rxb4 {[%clk 0:01:47]}  Qa6 {[%clk 0:02:04]} 24. Qxc3 {[%clk 0:01:44]}  h6 {[%clk 0:01:57]} 25. h3 {[%clk 0:01:40]}  Rd8 {[%clk 0:01:46]} 26. Kh2 {[%clk 0:01:21]}  Qa8 {[%clk 0:01:45]} 27. Bd4 {[%clk 0:01:14]}  Ba6 {[%clk 0:01:41]} 28. Ne5 {[%clk 0:01:13]}  Nf8 {[%clk 0:01:20]} 29. Ng4 {[%clk 0:01:07]}  Nxg4+ {[%clk 0:01:13]} 30. hxg4 {[%clk 0:01:08]}  f6 {[%clk 0:01:10]} 31. Bxf6 {[%clk 0:01:05]}  gxf6 {[%clk 0:01:06]} 32. Qxf6 {[%clk 0:01:06]}  Rd7 {[%clk 0:01:05]} 33. e5 {[%clk 0:00:55]}  Rf7 {[%clk 0:01:02]} 34. Qh4 {[%clk 0:00:45]}  Rxf2 {[%clk 0:00:59]} 35. Qxh6 {[%clk 0:00:45]}  Bf1 {[%clk 0:00:34]} 36. Kg1 {[%clk 0:00:38]}  Rxg2+ {[%clk 0:00:18]} 37. Kxf1 {[%clk 0:00:38]}  Rxg3 {[%clk 0:00:18]} 38. Qg5+ {[%clk 0:00:38]}  Kh8 {[%clk 0:00:18]} 39. Qh4+ {[%clk 0:00:38]}  Nh7 {[%clk 0:00:16]} 40. Qxg3 {[%clk 0:00:38]}  Qa1+ {[%clk 0:00:15]} 41. Qe1 {[%clk 0:00:37]}  Qa6+ {[%clk 0:00:15]} 42. Rc4 {[%clk 0:00:37]}  Qa2 {[%clk 0:00:13]} 43. Qf2 {[%clk 0:00:32]}  Qxb3 {[%clk 0:00:07]} 44. Rd4 {[%clk 0:00:32]}  Qb1+ {[%clk 0:00:07]} 45. Kg2 {[%clk 0:00:32]}  Qb8 {[%clk 0:00:05]} 46. Rd6 {[%clk 0:00:30]}  Qe8 {[%clk 0:00:03]} 47. Qd2 {[%clk 0:00:27]}  Kg7 {[%clk 0:00:03]} 48. Rd7+ {[%clk 0:00:27]}  Kg6 {[%clk 0:00:00]} 49. Qd3+ {[%clk 0:00:28]} 1-0


[Site "https://www.chess.com"]

[Event "Titled Tuesday Blitz July 4 Early 2023"]
[White "Hartikainen, Jarmo"]
[Black "Barbot, Pierre"]
[WhiteFideId "503134"]
[BlackFideId "663727"]
[WhiteElo "2164"]
[BlackElo "2367"]
[Result "0-1"]
[Round "10"]
[TimeControl "180+2"]
[Date "2023.07.04"]
[WhiteClock "0:00:12"]
[BlackClock "0:00:19"]
[Board "139"]

1. e4 {[%clk 0:03:00]}  c5 {[%clk 0:02:56]} 2. c3 {[%clk 0:03:00]}  Nf6 {[%clk 0:02:53]} 3. e5 {[%clk 0:03:00]}  Nd5 {[%clk 0:02:53]} 4. d4 {[%clk 0:02:59]}  cxd4 {[%clk 0:02:53]} 5. Nf3 {[%clk 0:02:57]}  Nc6 {[%clk 0:02:53]} 6. cxd4 {[%clk 0:02:55]}  e6 {[%clk 0:02:45]} 7. Nc3 {[%clk 0:02:53]}  d6 {[%clk 0:02:37]} 8. Bd3 {[%clk 0:02:42]}  dxe5 {[%clk 0:02:31]} 9. dxe5 {[%clk 0:02:39]}  Nxc3 {[%clk 0:02:29]} 10. bxc3 {[%clk 0:02:38]}  Qa5 {[%clk 0:02:18]} 11. O-O {[%clk 0:02:27]}  Nxe5 {[%clk 0:02:17]} 12. Nxe5 {[%clk 0:02:25]}  Qxe5 {[%clk 0:02:18]} 13. Re1 {[%clk 0:02:07]}  Qc7 {[%clk 0:02:14]} 14. Rb1 {[%clk 0:01:46]}  Bd6 {[%clk 0:02:03]} 15. Qh5 {[%clk 0:01:29]}  Bd7 {[%clk 0:01:23]} 16. Bg5 {[%clk 0:01:12]}  Rb8 {[%clk 0:01:12]} 17. Bh4 {[%clk 0:00:55]}  Qc5 {[%clk 0:01:05]} 18. Qg4 {[%clk 0:00:49]}  Be5 {[%clk 0:00:46]} 19. Rxe5 {[%clk 0:00:40]}  Qxe5 {[%clk 0:00:44]} 20. Bg3 {[%clk 0:00:40]}  Qxc3 {[%clk 0:00:40]} 21. Bxb8 {[%clk 0:00:18]}  Qxd3 {[%clk 0:00:33]} 22. Qb4 {[%clk 0:00:17]}  Bc6 {[%clk 0:00:20]} 23. h3 {[%clk 0:00:14]}  Qe4 {[%clk 0:00:15]} 24. Qxe4 {[%clk 0:00:13]}  Bxe4 {[%clk 0:00:16]} 25. Bxa7 {[%clk 0:00:13]}  Bxb1 {[%clk 0:00:15]} 26. a4 {[%clk 0:00:14]}  Bc2 {[%clk 0:00:15]} 27. a5 {[%clk 0:00:14]}  Kd7 {[%clk 0:00:16]} 28. Bc5 {[%clk 0:00:14]}  Ra8 {[%clk 0:00:16]} 29. Kh2 {[%clk 0:00:15]}  Rxa5 {[%clk 0:00:16]} 30. Bb6 {[%clk 0:00:15]}  Rb5 {[%clk 0:00:16]} 31. Be3 {[%clk 0:00:15]}  Rb1 {[%clk 0:00:17]} 32. Kg3 {[%clk 0:00:15]}  g6 {[%clk 0:00:18]} 33. Kf4 {[%clk 0:00:14]}  b5 {[%clk 0:00:19]} 34. Ke5 {[%clk 0:00:15]}  b4 {[%clk 0:00:20]} 35. Bd4 {[%clk 0:00:15]}  b3 {[%clk 0:00:20]} 36. Kf6 {[%clk 0:00:15]}  Rd1 {[%clk 0:00:17]} 37. Bc3 {[%clk 0:00:14]}  Bd3 {[%clk 0:00:18]} 38. Kxf7 {[%clk 0:00:14]}  Rf1 {[%clk 0:00:18]} 39. f3 {[%clk 0:00:13]}  Rg1 {[%clk 0:00:18]} 40. g4 {[%clk 0:00:13]}  Rg3 {[%clk 0:00:18]} 41. Kg7 {[%clk 0:00:12]}  Rxf3 {[%clk 0:00:18]} 42. Kxh7 {[%clk 0:00:13]}  Rxh3+ {[%clk 0:00:17]} 43. Kg7 {[%clk 0:00:13]}  Rg3 {[%clk 0:00:18]} 44. Kf6 {[%clk 0:00:12]}  Rxg4 {[%clk 0:00:18]} 45. Ke5 {[%clk 0:00:13]}  Rg2 {[%clk 0:00:18]} 46. Kd4 {[%clk 0:00:13]}  b2 {[%clk 0:00:19]} 47. Bxb2 {[%clk 0:00:12]}  Rxb2 {[%clk 0:00:18]} 48. Kxd3 {[%clk 0:00:13]}  Rb5 {[%clk 0:00:18]} 49. Ke4 {[%clk 0:00:14]}  Rf5 {[%clk 0:00:19]} 50. Kd4 {[%clk 0:00:14]}  g5 {[%clk 0:00:19]} 51. Ke4 {[%clk 0:00:12]}  g4 {[%clk 0:00:19]} 0-1


[Site "https://www.chess.com"]

[Event "Titled Tuesday Blitz July 4 Early 2023"]
[White "Korpics, Zsolt"]
[Black "Lisjak, Zlatko"]
[WhiteFideId "705241"]
[BlackFideId "14502186"]
[WhiteElo "2346"]
[BlackElo "2141"]
[Result "0-1"]
[Round "10"]
[TimeControl "180+2"]
[Date "2023.07.04"]
[WhiteClock "0:00:41"]
[BlackClock "0:02:21"]
[Board "141"]

1. e4 {[%clk 0:03:00]}  d6 {[%clk 0:02:59]} 2. d4 {[%clk 0:03:00]}  Nf6 {[%clk 0:02:59]} 3. Nc3 {[%clk 0:03:01]}  c6 {[%clk 0:02:59]} 4. f3 {[%clk 0:02:58]}  Qb6 {[%clk 0:02:57]} 5. g4 {[%clk 0:02:55]}  e5 {[%clk 0:02:54]} 6. g5 {[%clk 0:02:06]}  Nh5 {[%clk 0:02:48]} 7. Nge2 {[%clk 0:02:02]}  Be7 {[%clk 0:02:42]} 8. Be3 {[%clk 0:01:59]}  Qxb2 {[%clk 0:02:40]} 9. Na4 {[%clk 0:01:14]}  Qa3 {[%clk 0:02:32]} 10. c4 {[%clk 0:01:10]}  Qxe3 {[%clk 0:02:30]} 11. Rb1 {[%clk 0:00:42]}  Bxg5 {[%clk 0:02:28]} 12. Rb3 {[%clk 0:00:41]}  Bh4# {[%clk 0:02:21]} 0-1


[Site "https://www.chess.com"]

[Event "Titled Tuesday Blitz July 4 Early 2023"]
[White "Dwilewicz, Katarzyna"]
[Black "Singgih, Diajeng Theresa"]
[WhiteFideId "1148486"]
[BlackFideId "7104391"]
[WhiteElo "2328"]
[BlackElo "2133"]
[Result "0-1"]
[Round "10"]
[TimeControl "180+2"]
[Date "2023.07.04"]
[WhiteClock "0:00:03"]
[BlackClock "0:00:06"]
[Board "142"]

1. e4 {[%clk 0:02:56]}  e5 {[%clk 0:02:57]} 2. Nf3 {[%clk 0:02:56]}  Nc6 {[%clk 0:02:55]} 3. Bc4 {[%clk 0:02:56]}  Bc5 {[%clk 0:02:54]} 4. O-O {[%clk 0:02:54]}  Nf6 {[%clk 0:02:54]} 5. d3 {[%clk 0:02:53]}  O-O {[%clk 0:02:54]} 6. h3 {[%clk 0:02:52]}  h6 {[%clk 0:02:54]} 7. c3 {[%clk 0:02:51]}  d5 {[%clk 0:02:54]} 8. exd5 {[%clk 0:02:50]}  Nxd5 {[%clk 0:02:54]} 9. Re1 {[%clk 0:02:50]}  Be6 {[%clk 0:02:50]} 10. b4 {[%clk 0:02:37]}  Bb6 {[%clk 0:02:49]} 11. b5 {[%clk 0:02:36]}  Na5 {[%clk 0:02:39]} 12. Nxe5 {[%clk 0:02:30]}  Qh4 {[%clk 0:02:30]} 13. Qf3 {[%clk 0:02:21]}  Rad8 {[%clk 0:02:20]} 14. Re4 {[%clk 0:02:02]}  Qe7 {[%clk 0:02:09]} 15. Ba3 {[%clk 0:02:01]}  Bc5 {[%clk 0:02:07]} 16. Bxc5 {[%clk 0:01:59]}  Qxc5 {[%clk 0:02:07]} 17. d4 {[%clk 0:01:52]}  Qb6 {[%clk 0:02:01]} 18. Bf1 {[%clk 0:01:45]}  Nf6 {[%clk 0:01:23]} 19. Rh4 {[%clk 0:01:41]}  c5 {[%clk 0:01:15]} 20. Nd2 {[%clk 0:00:43]}  cxd4 {[%clk 0:01:13]} 21. Ndc4 {[%clk 0:00:39]}  Nxc4 {[%clk 0:01:07]} 22. Nxc4 {[%clk 0:00:40]}  Qxb5 {[%clk 0:01:06]} 23. Nd6 {[%clk 0:00:23]}  Qg5 {[%clk 0:00:49]} 24. Rxd4 {[%clk 0:00:19]}  Bd5 {[%clk 0:00:49]} 25. Rxd5 {[%clk 0:00:12]}  Qxd5 {[%clk 0:00:47]} 26. Qxd5 {[%clk 0:00:10]}  Nxd5 {[%clk 0:00:46]} 27. Nxb7 {[%clk 0:00:11]}  Rc8 {[%clk 0:00:42]} 28. c4 {[%clk 0:00:10]}  Nb6 {[%clk 0:00:35]} 29. c5 {[%clk 0:00:10]}  Na4 {[%clk 0:00:34]} 30. Rc1 {[%clk 0:00:10]}  Rc7 {[%clk 0:00:35]} 31. c6 {[%clk 0:00:08]}  Rfc8 {[%clk 0:00:21]} 32. Bb5 {[%clk 0:00:08]}  Nb6 {[%clk 0:00:20]} 33. Nd6 {[%clk 0:00:06]}  Rd8 {[%clk 0:00:19]} 34. Nb7 {[%clk 0:00:06]}  Rd5 {[%clk 0:00:19]} 35. a4 {[%clk 0:00:05]}  Rd4 {[%clk 0:00:19]} 36. a5 {[%clk 0:00:03]}  Nd5 {[%clk 0:00:17]} 37. Nd6 {[%clk 0:00:03]}  Nb4 {[%clk 0:00:12]} 38. Nf5 {[%clk 0:00:03]}  Rd5 {[%clk 0:00:12]} 39. Ne3 {[%clk 0:00:02]}  Rxb5 {[%clk 0:00:12]} 40. Rc4 {[%clk 0:00:02]}  Rxc6 {[%clk 0:00:10]} 41. Rd4 {[%clk 0:00:02]}  Rc1+ {[%clk 0:00:09]} 42. Kh2 {[%clk 0:00:02]}  Nc6 {[%clk 0:00:09]} 43. Rd6 {[%clk 0:00:01]}  Rxa5 {[%clk 0:00:09]} 44. g4 {[%clk 0:00:01]}  Ra2 {[%clk 0:00:09]} 45. Kg2 {[%clk 0:00:01]}  Ne5 {[%clk 0:00:08]} 46. Nf5 {[%clk 0:00:01]}  Kh7 {[%clk 0:00:07]} 47. Rd5 {[%clk 0:00:01]}  Nc4 {[%clk 0:00:05]} 48. Kg3 {[%clk 0:00:01]}  Rc3+ {[%clk 0:00:05]} 49. f3 {[%clk 0:00:01]}  Raa3 {[%clk 0:00:05]} 50. Nd4 {[%clk 0:00:01]}  Nd2 {[%clk 0:00:05]} 51. h4 {[%clk 0:00:01]}  Nxf3 {[%clk 0:00:04]} 52. Nxf3 {[%clk 0:00:01]}  Rxf3+ {[%clk 0:00:05]} 53. Kg2 {[%clk 0:00:02]}  Rfb3 {[%clk 0:00:05]} 54. Rd2 {[%clk 0:00:03]}  a5 {[%clk 0:00:05]} 55. Kf2 {[%clk 0:00:03]}  Rc3 {[%clk 0:00:06]} 56. g5 {[%clk 0:00:04]}  a4 {[%clk 0:00:06]} 57. h5 {[%clk 0:00:04]}  hxg5 {[%clk 0:00:06]} 58. h6 {[%clk 0:00:03]}  gxh6 {[%clk 0:00:06]} 0-1


[Site "https://www.chess.com"]

[Event "Titled Tuesday Blitz July 4 Early 2023"]
[White "Shapiro, Daniel"]
[Black "Aanna12"]
[WhiteFideId "2001780"]
[WhiteElo "2327"]
[BlackElo "2097"]
[Result "1-0"]
[Round "10"]
[TimeControl "180+2"]
[Date "2023.07.04"]
[WhiteClock "0:01:30"]
[BlackClock "0:00:59"]
[Board "143"]

1. d4 {[%clk 0:03:00]}  Nf6 {[%clk 0:02:59]} 2. c4 {[%clk 0:03:00]}  d6 {[%clk 0:02:59]} 3. Nc3 {[%clk 0:03:00]}  Nbd7 {[%clk 0:02:59]} 4. e4 {[%clk 0:02:59]}  e5 {[%clk 0:02:58]} 5. Nf3 {[%clk 0:02:59]}  Be7 {[%clk 0:02:58]} 6. Be2 {[%clk 0:02:59]}  O-O {[%clk 0:02:58]} 7. O-O {[%clk 0:02:56]}  c6 {[%clk 0:02:58]} 8. Be3 {[%clk 0:02:56]}  Re8 {[%clk 0:02:55]} 9. h3 {[%clk 0:02:55]}  Bf8 {[%clk 0:02:52]} 10. Qc2 {[%clk 0:02:54]}  exd4 {[%clk 0:02:49]} 11. Nxd4 {[%clk 0:02:49]}  Nc5 {[%clk 0:02:49]} 12. Bf3 {[%clk 0:02:38]}  a5 {[%clk 0:02:42]} 13. Rfe1 {[%clk 0:02:36]}  h6 {[%clk 0:02:42]} 14. Rad1 {[%clk 0:02:31]}  Qc7 {[%clk 0:02:41]} 15. Bf4 {[%clk 0:02:27]}  Nfd7 {[%clk 0:02:31]} 16. b3 {[%clk 0:01:49]}  Ne5 {[%clk 0:02:24]} 17. Be2 {[%clk 0:01:49]}  Ne6 {[%clk 0:02:19]} 18. Nxe6 {[%clk 0:01:39]}  Bxe6 {[%clk 0:02:18]} 19. Bg3 {[%clk 0:01:35]}  Rad8 {[%clk 0:02:00]} 20. f4 {[%clk 0:01:34]}  Nd7 {[%clk 0:01:14]} 21. f5 {[%clk 0:01:34]}  Bxf5 {[%clk 0:01:14]} 22. exf5 {[%clk 0:01:34]}  Nc5 {[%clk 0:00:59]} 23. Bf3 {[%clk 0:01:30]} 1-0


[Site "https://www.chess.com"]

[Event "Titled Tuesday Blitz July 4 Early 2023"]
[White "Vifleemskaia, Svetlana"]
[Black "Floresvillar Gonzalez, Luis Migu"]
[WhiteFideId "4129490"]
[BlackFideId "5100542"]
[WhiteElo "2316"]
[BlackElo "2096"]
[Result "0-1"]
[Round "10"]
[TimeControl "180+2"]
[Date "2023.07.04"]
[WhiteClock "0:00:00"]
[BlackClock "0:00:34"]
[Board "144"]

1. d4 {[%clk 0:03:00]}  Nf6 {[%clk 0:02:56]} 2. c4 {[%clk 0:03:00]}  b6 {[%clk 0:02:46]} 3. Nc3 {[%clk 0:03:00]}  Bb7 {[%clk 0:02:46]} 4. a3 {[%clk 0:03:00]}  e6 {[%clk 0:02:39]} 5. d5 {[%clk 0:02:57]}  exd5 {[%clk 0:02:32]} 6. cxd5 {[%clk 0:02:58]}  Bd6 {[%clk 0:02:04]} 7. e4 {[%clk 0:02:57]}  O-O {[%clk 0:02:03]} 8. Bd3 {[%clk 0:02:56]}  Re8 {[%clk 0:02:02]} 9. Nge2 {[%clk 0:02:55]}  c6 {[%clk 0:01:53]} 10. f4 {[%clk 0:02:41]}  Bc5 {[%clk 0:01:31]} 11. b4 {[%clk 0:02:37]}  Bf8 {[%clk 0:01:13]} 12. e5 {[%clk 0:02:34]}  Nxd5 {[%clk 0:01:12]} 13. Nxd5 {[%clk 0:02:34]}  cxd5 {[%clk 0:01:12]} 14. O-O {[%clk 0:02:34]}  d6 {[%clk 0:01:10]} 15. Bb2 {[%clk 0:02:06]}  Nd7 {[%clk 0:01:09]} 16. Qc2 {[%clk 0:01:47]}  Qh4 {[%clk 0:01:07]} 17. Rf3 {[%clk 0:01:19]}  Rac8 {[%clk 0:01:05]} 18. Qd2 {[%clk 0:01:11]}  g6 {[%clk 0:00:52]} 19. Rh3 {[%clk 0:01:04]}  Qe7 {[%clk 0:00:50]} 20. exd6 {[%clk 0:01:00]}  Qxd6 {[%clk 0:00:49]} 21. Rxh7 {[%clk 0:00:51]}  Kxh7 {[%clk 0:00:44]} 22. f5 {[%clk 0:00:45]}  Bg7 {[%clk 0:00:41]} 23. fxg6+ {[%clk 0:00:37]}  fxg6 {[%clk 0:00:41]} 24. Bxg7 {[%clk 0:00:10]}  Kxg7 {[%clk 0:00:41]} 25. Nf4 {[%clk 0:00:10]}  d4 {[%clk 0:00:38]} 26. Nxg6 {[%clk 0:00:07]}  Re3 {[%clk 0:00:37]} 27. Bf5 {[%clk 0:00:06]}  Qd5 {[%clk 0:00:36]} 28. Rf1 {[%clk 0:00:00]}  Ne5 {[%clk 0:00:34]} 0-1


[Site "https://www.chess.com"]

[Event "Titled Tuesday Blitz July 4 Early 2023"]
[White "Politov, Pavel Y."]
[Black "Sokolov, Andrei"]
[WhiteFideId "24110515"]
[BlackFideId "11600306"]
[WhiteElo "2078"]
[BlackElo "2303"]
[Result "1-0"]
[Round "10"]
[TimeControl "180+2"]
[Date "2023.07.04"]
[WhiteClock "0:00:17"]
[BlackClock "0:00:00"]
[Board "145"]

1. e4 {[%clk 0:03:00]}  c6 {[%clk 0:02:59]} 2. d4 {[%clk 0:02:59]}  d5 {[%clk 0:02:59]} 3. exd5 {[%clk 0:02:59]}  cxd5 {[%clk 0:03:00]} 4. Bd3 {[%clk 0:02:59]}  Nc6 {[%clk 0:03:00]} 5. c3 {[%clk 0:02:59]}  Nf6 {[%clk 0:03:00]} 6. h3 {[%clk 0:02:58]}  e5 {[%clk 0:03:00]} 7. dxe5 {[%clk 0:02:57]}  Nxe5 {[%clk 0:02:59]} 8. Nf3 {[%clk 0:02:58]}  Nxd3+ {[%clk 0:02:54]} 9. Qxd3 {[%clk 0:02:57]}  Be6 {[%clk 0:02:54]} 10. O-O {[%clk 0:02:56]}  Bd6 {[%clk 0:02:54]} 11. Be3 {[%clk 0:02:53]}  O-O {[%clk 0:02:53]} 12. Nbd2 {[%clk 0:02:53]}  Bc7 {[%clk 0:02:37]} 13. Nb3 {[%clk 0:02:45]}  Qd6 {[%clk 0:02:32]} 14. Bc5 {[%clk 0:02:40]}  Qf4 {[%clk 0:02:10]} 15. Bxf8 {[%clk 0:02:38]}  Rxf8 {[%clk 0:02:06]} 16. Qd4 {[%clk 0:02:30]}  Qh6 {[%clk 0:01:48]} 17. Qe3 {[%clk 0:02:09]}  Bf4 {[%clk 0:01:45]} 18. Qd4 {[%clk 0:02:02]}  Ne4 {[%clk 0:01:38]} 19. Rfe1 {[%clk 0:01:24]}  f5 {[%clk 0:00:50]} 20. Rad1 {[%clk 0:01:15]}  Rf6 {[%clk 0:00:48]} 21. Nc5 {[%clk 0:01:07]}  Bf7 {[%clk 0:00:42]} 22. Nxe4 {[%clk 0:00:59]}  fxe4 {[%clk 0:00:37]} 23. Rxe4 {[%clk 0:00:56]}  dxe4 {[%clk 0:00:19]} 24. Qd8+ {[%clk 0:00:55]}  Be8 {[%clk 0:00:20]} 25. Qxe8+ {[%clk 0:00:54]}  Rf8 {[%clk 0:00:20]} 26. Qxe4 {[%clk 0:00:52]}  Bb8 {[%clk 0:00:12]} 27. Qxb7 {[%clk 0:00:49]}  Qf4 {[%clk 0:00:11]} 28. Qd5+ {[%clk 0:00:47]}  Kh8 {[%clk 0:00:11]} 29. Qd4 {[%clk 0:00:45]}  Qc7 {[%clk 0:00:10]} 30. Qe4 {[%clk 0:00:38]}  h6 {[%clk 0:00:10]} 31. Qd4 {[%clk 0:00:35]}  Kh7 {[%clk 0:00:04]} 32. Qd3+ {[%clk 0:00:33]}  Kh8 {[%clk 0:00:05]} 33. Qd7 {[%clk 0:00:32]}  Qf4 {[%clk 0:00:04]} 34. Qd3 {[%clk 0:00:30]}  Qc7 {[%clk 0:00:04]} 35. Qe3 {[%clk 0:00:29]}  Rxf3 {[%clk 0:00:03]} 36. gxf3 {[%clk 0:00:17]}  Qh2+ {[%clk 0:00:03]} 37. Kf1 {[%clk 0:00:17]}  Qxh3+ {[%clk 0:00:00]} 38. Ke2 {[%clk 0:00:17]} 1-0


[Site "https://www.chess.com"]